Cogmind - Beta 17.1 @@@ ROGUE MODE // 2026.09.19 @ 03:49:42 Player: 7H-NLC Result: Destroyed by G-50 Soldier with Heavy Laser Performance ------------- Evolutions (5) 2500 Regions Visited (6) 1200 Robots Destroyed (37) 185 Value Destroyed (1792) 1792 Prototype IDs (32) 640 Alien Tech Used (0) 0 Bonus (800) 800 TOTAL SCORE: 7117 Bonus ------- Registered with UFD 300 Met Optimus in HQ 500 Cogmind --------- Core Integrity 0/1000 Matter 54/300 Energy 100/100 System Corruption 9% Temperature Cool (9) Movement Core (700) Ox13 Location -5/Upper Caves Parts ------- > --- POWER (1) -------- (None) > --- PROPULSION (4) --- (None) > --- UTILITY (10) ----- High-capacity Storage Unit Experimental Signal Interpreter Core Analyzer Expert System (Blank) > --- WEAPON (2) ------- (None) > --- INVENTORY (20) --- Neutrino Core Light Antimatter Reactor High-capacity Matter Pod (83) Surveybot 24 Chip Makeshift Cloaking Device Improved Medium Armor Plating Improved Heavy Armor Plating Medium Reactive Plating A0-MCA's Component Scanner Mini Drone Bay (3/3) Power Bank Long-range Proton Cannon Improved Heavy Machine Gun Improved Heavy Machine Gun Hypervelocity Coil Gun Mass Driver Mini Smartbomb Launcher LU-1G1's Laser Shovel CPS Tube (2) Peak State ------------ > --- POWER ------------ Neutrino Core > --- PROPULSION ------- Ballwheel > --- UTILITY ---------- Advanced Heat Sink High-capacity Storage Unit Experimental Signal Interpreter Core Analyzer Improved Kinecellerator Expert System Improved Heavy Armor Plating EM Shield Improved Hacking Suite > --- WEAPON ----------- Improved Heavy Machine Gun Improved Heavy Machine Gun > --- INVENTORY -------- Neutrino Core Light Antimatter Reactor Nuclear Pulse Thruster High-capacity Matter Pod Surveybot 24 Chip Makeshift Cloaking Device Improved Medium Armor Plating Improved Heavy Armor Plating Medium Reactive Plating A0-MCA's Component Scanner Mini Drone Bay Power Bank Long-range Proton Cannon Improved Heavy Machine Gun Mass Driver Mini Smartbomb Launcher LU-1G1's Laser Shovel CPS Tube Power Maul [Rating: 100] Favorites ----------- Power Improved Deuterium Engine Engine Improved Deuterium Engine Power Core Neutrino Core Propulsion Wheel Wheel Wheel Flight Unit Nuclear Pulse Thruster Utility High-capacity Storage Unit Device Seismic Detector Storage High-capacity Storage Unit Processor Core Analyzer Hackware Improved Hacking Suite Protection Improved Medium Armor Plating Weapon Gauss Rifle Energy Gun Small Laser Ballistic Gun Gauss Rifle Ballistic Cannon Mass Driver Launcher Mini Smartbomb Launcher Special Weapon Mining Laser Impact Weapon Power Maul Special Melee Weapon Improved Datajack Build | -11 -10 -10 -7 -5 -5 -5 ------- Run | Yrd Mat Sub Scr Fac Upp Upp Slots Evolved 10 | . . . . 10 . . Power . | . . . . . . . Propulsion 2 | . . . . 2 . . Utility 8 | . . . . 8 . . Weapon . | . . . . . . . Parts Attached 67 | 8 . 3 19 28 2 7 Power 7 | 2 . . 2 3 . . Engine 4 | 2 . . 2 . . . Core 3 | . . . . 3 . . Reactor . | . . . . . . . Propulsion 10 | 2 . . 3 2 . 3 Treads . | . . . . . . . Leg . | . . . . . . . Wheel 6 | 2 . . 1 1 . 2 Hover . | . . . . . . . Flight 4 | . . . 2 1 . 1 Utility 26 | 2 . . 7 15 . 2 Device 8 | 1 . . . 6 . 1 Storage 5 | 1 . . 4 . . . Processor 5 | . . . 1 3 . 1 Hackware 1 | . . . . 1 . . Protection 7 | . . . 2 5 . . Artifact . | . . . . . . . Weapon 24 | 2 . 3 7 8 2 2 Energy Gun 2 | 1 . 1 . . . . Energy Cannon . | . . . . . . . Ballistic Gun 12 | 1 . 1 2 5 1 2 Ballistic Cannon 1 | . . . . . 1 . Launcher 3 | . . . 1 2 . . Special Weapon 2 | . . 1 1 . . . Impact Weapon 2 | . . . 1 1 . . Slashing Weapon . | . . . . . . . Piercing Weapon . | . . . . . . . Special Melee Weapon 2 | . . . 2 . . . Unidentified Prototypes 6 | . . . 1 5 . . Parts Lost 17 | . 1 . . 2 . 14 Power 1 | . . . . . . 1 Propulsion 4 | . . . . . . 4 Utility 9 | . . . . 2 . 7 Weapon 3 | . 1 . . . . 2 Highest Loss Streak 4 | . 1 . . 1 . 4 To Critical Strikes . | . . . . . . . Average Backups 14 | 2 6 7 11 17 19 18 Power 1 | . 1 . . 2 1 1 Propulsion . | 1 2 2 . . 1 . Utility 6 | . 1 1 6 7 9 9 Weapon 3 | . 1 2 2 4 5 5 Tool/Special . | . . . . . . . Unused Backups 29 | . . 1 10 5 1 12 Power 6 | . . . 1 2 1 2 Propulsion 4 | . . 1 3 . . . Utility 10 | . . . 2 . . 8 Weapon 7 | . . . 3 3 . 1 Tool/Special 2 | . . . 1 . . 1 Average Slot Usage (%) 81 | . 98 96 96 69 76 56 Engine 8 | . 14 14 14 1 . . Core 1 | . . . . 4 5 1 Wheel 15 | . 28 28 23 5 5 1 Flight 2 | . . . 4 . . 3 Device 5 | . 14 14 3 8 11 5 Storage 9 | . 14 14 11 5 5 5 Processor 8 | . . . 1 14 17 22 Protection 7 | . . . 10 12 11 . Energy Gun 1 | . 14 17 . . . . Ballistic Gun 12 | . 12 3 18 9 1 6 Impact Weapon 1 | . . . 2 . 4 2 Special Melee Weapon 1 | . . . 3 . . . Peak Build Rating 100 | 7 7 12 32 99 98 100 Average Rating 44 | 4 6 8 22 90 96 62 On Entrance 35 | . 7 6 12 32 96 98 Avg Prop Armor Cover (%) 2 | . . . . . . 2 Naked Turns . | . . . . . . . Heaviest Build 100 | 14 14 17 65 100 90 88 Greatest Support 35 | 20 20 20 22 35 35 35 Greatest Overweight (x) 21 | . . . 2 13 2 21 Average Overweight (x) 1 | . . . . 1 2 4 Largest Inventory Capacity 20 | 8 8 8 20 20 20 20 Average Capacity 16 | 6 8 8 14 20 20 20 Most Carried 20 | 5 7 8 20 20 20 20 Average Carried 14 | 2 6 7 11 18 19 19 Final Capacity 20 | 8 8 8 20 20 20 20 Final Carried 20 | 5 7 8 20 20 20 20 Class Distribution -------------------- 56% | Mutant 42% | Derelict-Mutant Dominant Class ---------------- Mutant | -10/Materials Mutant | -10/Subcaves Derelict-Mutant | -7/Scraptown Mutant | -5/Factory Mutant | -5/Upper Caves Mutant | -5/Upper Caves Resources | -11 -10 -10 -7 -5 -5 -5 ----------- Run | Yrd Mat Sub Scr Fac Upp Upp Matter Collected 2565 | 249 43 30 440 891 167 745 Remotely . | . . . . . . . Salvage Created 1623 | 24 . 77 . 1030 55 437 Parts 86 | 4 . 9 . 47 4 22 Haulers Intercepted 3 | . . . . 3 . . Recyclers Shooed 3 | 1 . . . 2 . . Parts Field Recycled . | . . . . . . . Retrieved Matter . | . . . . . . . Parts Self-Destructed 19 | . . . 3 . 1 15 Prevented . | . . . . . . . Parts Restored . | . . . . . . . Kills | -11 -10 -10 -7 -5 -5 -5 ------- Run | Yrd Mat Sub Scr Fac Upp Upp Combat Hostiles Destroyed 30 | . . 2 . 13 1 14 Guns 18 | . . 2 . 11 1 4 AOE 12 | . . . . 2 . 10 Classes Destroyed 10 | 1 . 1 . 6 . 2 Worker 1 | . . . . 1 . . Tunneler 2 | 1 . . . 1 . . Hauler 3 | . . . . 3 . . Minesweeper 1 | . . . . . . 1 Swarmer 5 | . . . . . . 5 Grunt 6 | . . . . 3 . 3 Sentry 3 | . . . . 2 . 1 Hunter 6 | . . . . 3 . 3 Programmer 8 | . . . . 5 1 2 Subdweller 2 | . . 2 . . . . Decomposer 1 | . . . . . . 1 Best Kill Streak 6 | 1 . 2 . 5 1 6 Combat Bots Only 6 | . . 2 . 3 1 6 Max Kills in Single Turn 3 | 1 . 1 . 1 1 3 Gunslinging . | . . . . . . . Exploded 3 | . . . . 1 . 3 Melee . | . . . . . . . Uniques/NPCs Destroyed . | . . . . . . . Combat | -11 -10 -10 -7 -5 -5 -5 -------- Run | Yrd Mat Sub Scr Fac Upp Upp Hostile Shots Fired 387 | . 41 . 7 141 13 185 Missed 108 | . 13 . 3 46 4 42 Hits 279 | . 28 . 4 95 9 143 Melee 17 | . . . . . . 17 Projectile 262 | . 28 . 4 95 9 126 Critical Strikes 10 | . 1 . . 3 . 6 Damage Taken 5175 | . 281 10 87 1732 165 2900 Core 1132 | . 77 10 44 87 . 914 Absorbed by Shields . | . . . . . . . Redirected to Shielding 61 | . . . . 61 . . Ignored by Resistances 65 | . . . . 55 10 . Regen/Repaired (Parts) 586 | . . . . 586 . . Core Remaining (%) 73 | 100 . . 47 . . . Volleys Fired 136 | 2 2 4 2 71 3 52 Largest 2 | 2 2 2 2 2 2 2 Hottest 100 | 60 60 100 56 56 47 80 Shots Fired 244 | 4 4 7 4 136 5 84 Gun 223 | 4 4 6 4 134 4 67 Cannon 2 | . . . . . 1 1 Launcher 18 | . . . . 2 . 16 Special 1 | . . 1 . . . . Kinetic 215 | 2 2 . 4 134 5 68 Thermal 11 | 2 2 7 . . . . Explosive 18 | . . . . 2 . 16 Electromagnetic . | . . . . . . . Robot Hit Streak 9 | 2 1 5 . 8 2 9 Robot Miss Streak 4 | 2 1 . . 4 1 3 Penetration Max 1 | . . . . 1 . . Secondary Targets . | . . . . . . . Shots Hit Robots 148 | 2 2 5 5 86 2 46 Core Hits 73 | 1 2 3 . 39 2 26 Critical Kills 2 | . . . . 2 . . Critical Parts Destroyed 1 | . . . . 1 . . Critical Strikes 3 | . . . . 3 . . Destroy 3 | . . . . 3 . . Melee Attacks 18 | . . . 9 3 . 6 Impact 13 | . . . 4 3 . 6 Slashing . | . . . . . . . Piercing . | . . . . . . . Sneak Attacks 6 | . . . 5 . . 1 Combat Hostiles . | . . . . . . . Follow-up Attacks . | . . . . . . . Damage Inflicted 4496 | 24 23 44 . 2181 62 2162 Guns 2950 | 24 23 44 . 1986 62 811 Cannons . | . . . . . . . Explosions 1430 | . . . . 195 . 1235 Melee 116 | . . . . . . 116 Ramming . | . . . . . . . Kinetic 2872 | 13 . . . 1986 62 811 Thermal 78 | 11 23 44 . . . . Explosive 1430 | . . . . 195 . 1235 Electromagnetic . | . . . . . . . Impact 116 | . . . . . . 116 Slashing . | . . . . . . . Piercing . | . . . . . . . Highest Corruption 9 | . . . . 8 8 9 Average Corruption 7 | . . . . 5 8 8 Corruption Purged . | . . . . . . . Corruption Blocked . | . . . . . . . Effects 89 | . . . . 18 7 64 Message Errors 19 | . . . . 5 2 12 Matter Fused 18 | . . . . 2 2 14 Heat Flow Errors 14 | . . . . 4 . 10 Energy Discharges 14 | . . . . 2 2 10 Parts Rejected 2 | . . . . 1 . 1 Data Loss (minor) 9 | . . . . 1 1 7 Data Loss (major) 5 | . . . . 1 . 4 Misfires 4 | . . . . 1 . 3 Weapon Failures 4 | . . . . 1 . 3 Overload Shots . | . . . . . . . Overflow Damage 183 | . . . . . . 183 Projectiles . | . . . . . . . Explosions 107 | . . . . . . 107 Melee 76 | . . . . . . 76 Knockbacks . | . . . . . . . Impact . | . . . . . . . Kinetic . | . . . . . . . Secondary . | . . . . . . . Self-Inflicted Damage . | . . . . . . . Shots . | . . . . . . . Rammed . | . . . . . . . Targets Rammed . | . . . . . . . Kicked . | . . . . . . . Crushed . | . . . . . . . Highest Temperature 432 | . 16 . 12 432 . 236 Average Temperature 117 | . 11 . 6 149 . 93 Received Heat Transfer 957 | . 87 6 48 198 57 561 Effects 2 | . . . . 2 . . Shutdowns 1 | . . . . 1 . . Short Circuit 1 | . . . . 1 . . Siege Activations . | . . . . . . . Martial Activations . | . . . . . . . Shielding Activations . | . . . . . . . Robots Disrupted . | . . . . . . . Combat Hostiles . | . . . . . . . Robots Corrupted 1 | . . . . . . 1 Combat Hostiles . | . . . . . . . Parts Fried . | . . . . . . . Impact Corruptions 3 | . . . . . . 3 Robots Melted . | . . . . . . . Combat Hostiles . | . . . . . . . Parts Melted . | . . . . . . . Heat Transferred 150 | 25 50 75 . . . . Parts Sabotaged . | . . . . . . . Parts Stolen . | . . . . . . . Parts Stripped . | . . . . . . . Power Chain Reactions . | . . . . . . . Alert | -11 -10 -10 -7 -5 -5 -5 ------- Run | Yrd Mat Sub Scr Fac Upp Upp Maximum Alert Level . | . . . . . . . Low Security (%) 100 | 100 100 . . 100 . . Level 1 . | . . . . . . . Level 2 . | . . . . . . . Level 3 . | . . . . . . . Level 4 . | . . . . . . . Level 5 . | . . . . . . . High Security . | . . . . . . . Max Security . | . . . . . . . Peak Influence 157 | 5 15 . . 157 . . Initial . | . . . . . . . Average 51 | . 2 . . 59 . . Influence Increases 1029 | 5 15 . . 539 120 350 Destroy 0b10 Robot/C 560 | . . . . 260 20 280 Destroy 0b10 Robot/NC 35 | 5 . . . 25 . 5 Destroy Leader 136 | . . . . 76 10 50 Successful Hack 36 | . . . . 36 . . Disable Machine 45 | . . . . 45 . . Destroy Structure 52 | . . . . 52 . . Lose Combat Pursuer 165 | . 15 . . 45 90 15 Influence Decreases 1029 | 5 15 . . 382 199 428 Entered New Map 74 | . . . . . 59 15 Time Decay 865 | 5 15 . . 372 140 333 Lost Part 90 | . . . . 10 . 80 Squads Dispatched 6 | . 1 . . 5 . . Investigation 1 | . . . . 1 . . Extermination 3 | . . . . 3 . . Reinforcement 2 | . 1 . . 1 . . Assault . | . . . . . . . Garrison . | . . . . . . . Intercept . | . . . . . . . Searches Triggered . | . . . . . . . Construction Impeded . | . . . . . . . Haulers Reinforced 1 | . . . . 1 . . Active Scanning Responses . | . . . . . . . Cargo Convoy Interrupts . | . . . . . . . Stealth | -11 -10 -10 -7 -5 -5 -5 --------- Run | Yrd Mat Sub Scr Fac Upp Upp Distress Signals 3 | . 1 . . 2 . . Communications Jammed . | . . . . . . . Distress Signals . | . . . . . . . Times Spotted 69 | . 8 4 7 25 7 18 Peak Tracking Total 7 | . 7 2 6 4 3 5 Tactical Retreats 5 | . 1 . . 1 2 1 Traps | -11 -10 -10 -7 -5 -5 -5 ------- Run | Yrd Mat Sub Scr Fac Upp Upp Traps Triggered 1 | . . . . 1 . . Indirectly . | . . . . . . . Trap Hack Attempts . | . . . . . . . Triggered . | . . . . . . . Disarmed . | . . . . . . . Reprogrammed . | . . . . . . . Reused . | . . . . . . . Traps Extracted . | . . . . . . . Installed . | . . . . . . . Triggered . | . . . . . . . Machines | -11 -10 -10 -7 -5 -5 -5 ---------- Run | Yrd Mat Sub Scr Fac Upp Upp Machines Disabled 12 | . . 1 8 3 . . Max in Single Turn 1 | . . 1 1 1 . . Machines Repaired . | . . . . . . . Machines Dismantled . | . . . . . . . Machines Sabotaged . | . . . . . . . Overloaded Fab Kills . | . . . . . . . Hacking | -11 -10 -10 -7 -5 -5 -5 --------- Run | Yrd Mat Sub Scr Fac Upp Upp Machines Accessed 12 | . . 1 1 8 2 . Terminals 4 | . . . . 3 1 . Fabricators 2 | . . . . 2 . . Repair Stations 3 | . . . . 3 . . Recycling Units . | . . . . . . . Scanalyzers . | . . . . . . . Garrison Access . | . . . . . . . Total Hacks 24 | . . 1 4 17 2 . Successful 14 | . . 1 4 7 2 . Failed 10 | . . . . 10 . . Catastrophic 2 | . . . . 2 . . Database Lockouts . | . . . . . . . Manual 6 | . . . . 6 . . Terminals 7 | . . . . 6 1 . Fabricators 4 | . . . . 4 . . Repair Stations 7 | . . . . 7 . . Recycling Units . | . . . . . . . Scanalyzers . | . . . . . . . Garrison Access . | . . . . . . . Terminal Hacks 7 | . . 1 4 . 2 . Record 5 | . . . 4 . 1 . Open Door 1 | . . . . . 1 . Proto ID Catalog 1 | . . 1 . . . . Fabricator Hacks 1 | . . . . 1 . . Network Status 1 | . . . . 1 . . Repair Station Hacks 4 | . . . . 4 . . Scan Component 2 | . . . . 2 . . Repair 2 | . . . . 2 . . Recycling Unit Hacks . | . . . . . . . Scanalyzer . | . . . . . . . Garrison Access Hacks . | . . . . . . . Unauthorized Hacks 2 | . . . . 2 . . Terminals 2 | . . . . 2 . . Botnet 1 | . . . . 1 . . Skim 1 | . . . . 1 . . Fabricators . | . . . . . . . Repair Stations . | . . . . . . . Recycling Units . | . . . . . . . Scanalyzers . | . . . . . . . Garrison Access . | . . . . . . . Data Cores Recovered . | . . . . . . . Used . | . . . . . . . Hacking Detections 8 | . . . . 7 1 . Full Trace Events 1 | . . . . 1 . . Feedback Events . | . . . . . . . Feedback Blocked . | . . . . . . . Robot Schematics Acquired . | . . . . . . . Robots Built . | . . . . . . . Authchips . | . . . . . . . Time . | . . . . . . . Total Robot Build Rating . | . . . . . . . Part Schematics Acquired . | . . . . . . . Parts Built . | . . . . . . . Authchips . | . . . . . . . Time . | . . . . . . . Total Part Build Rating . | . . . . . . . Part Studies Acquired . | . . . . . . . Parts Repaired 1 | . . . . 1 . . Time 95 | . . . . 95 . . Parts Recycled . | . . . . . . . Recycled Matter . | . . . . . . . Retrieved Matter . | . . . . . . . Retrieved Components . | . . . . . . . Parts Scanalyzed . | . . . . . . . Part Schematics Acquired . | . . . . . . . Parts Damaged . | . . . . . . . Bothacking | -11 -10 -10 -7 -5 -5 -5 ------------ Run | Yrd Mat Sub Scr Fac Upp Upp Used RIF Installer . | . . . . . . . Robots Hacked 5 | . . . 5 . . . Non-combat 1 | . . . 1 . . . Combat 4 | . . . 4 . . . Robot Hacks Applied 5 | . . . 5 . . . parse_system 5 | . . . 5 . . . Relay Couplers Released . | . . . . . . . Fabnet Peak Effective % . | . . . . . . . Robots Rewired . | . . . . . . . Allies Hacked . | . . . . . . . Hacks Repelled . | . . . . . . . Allies | -11 -10 -10 -7 -5 -5 -5 -------- Run | Yrd Mat Sub Scr Fac Upp Upp Total Allies . | . . . . . . . Largest Group . | . . . . . . . Highest-Rated Group . | . . . . . . . Highest-Rated Ally . | . . . . . . . Initial UFD Resources 39 | . . . . 39 39 39 Total Orders . | . . . . . . . Ally Attacks . | . . . . . . . Total Damage . | . . . . . . . Kills . | . . . . . . . Allies Corrupted . | . . . . . . . Allies Melted 2 | . . . 2 . . . Intel | -11 -10 -10 -7 -5 -5 -5 ------- Run | Yrd Mat Sub Scr Fac Upp Upp Active Infowar (turns) 2179 | 8 117 345 1130 579 . . Sensors 578 | . . . . 578 . . Seismic 1600 | 8 117 345 1130 . . . Cloaking 499 | . . . . 499 . . Robot Analysis Total . | . . . . . . . Derelict Logs Recovered 6 | . . 1 2 . 1 2 Drone Launches . | . . . . . . . Drone Recoveries . | . . . . . . . Exploration | -11 -10 -10 -7 -5 -5 -5 ------------- Run | Yrd Mat Sub Scr Fac Upp Upp Turns Passed 7927 | 69 117 345 4008 1199 282 1907 Spaces Moved 6957 | 58 129 351 4251 1181 379 608 Core 21 | 2 . . . . . 19 Treads . | . . . . . . . Legs . | . . . . . . . Wheels 5500 | 56 129 351 3008 1180 379 397 Hover . | . . . . . . . Flight 1436 | . . . 1243 1 . 192 Fastest Speed 44 | 50 80 80 44 60 70 60 Average Speed 97 | 78 80 80 83 68 70 285 Slowest Speed 1100 | 80 80 80 129 880 70 1100 Overloaded Moves . | . . . . . . . Propulsion Burnouts . | . . . . . . . Robots Hopped . | . . . . . . . Potential Cave-ins 5 | . . . 5 . . . Cave-ins Triggered . | . . . . . . . Exploration Rate (%) 44 | 3 24 26 90 32 63 74 Regions Visited 6 Branch Regions 4 Pre-discovered Areas 2 | . . 1 1 . . . Known Exits Taken 2 | . . . . 1 1 . Unknown Exits Taken 4 | 1 1 1 1 . . . Scrap Searched 16 | . . 3 7 . 2 4 Spaces Dug 34 | . . . 22 5 2 5 Terrain Destroyed 207 | . . . 18 21 2 166 Melee 8 | . . . . 3 . 5 Projectile 14 | . . . . . 2 12 AOE 165 | . . . . 16 . 149 Terrain Rammed . | . . . . . . . Walls Destroyed . | . . . . . . . Machines Disabled . | . . . . . . . Actions | -11 -10 -10 -7 -5 -5 -5 --------- Run | Yrd Mat Sub Scr Fac Upp Upp Total 7829 | 72 138 405 4694 1439 390 691 Wait 495 | 1 6 43 331 103 4 7 Move 6951 | 57 128 350 4250 1180 378 608 Hop . | . . . . . . . Pick Up 66 | 4 2 3 36 18 1 2 Fast Attach 30 | 7 . 1 6 12 . 4 Attach 11 | . . . 1 8 . 2 Detach 4 | . . . 3 1 . . Swap 57 | 1 . 2 22 20 3 9 Drop 61 | . . 2 34 23 1 1 Fire 136 | 2 2 4 2 71 3 52 Melee 18 | . . . 9 3 . 6 Ram . | . . . . . . . Kick . | . . . . . . . Crush . | . . . . . . . Escape Stasis . | . . . . . . . Rewire . | . . . . . . . Trap . | . . . . . . . Miscellaneous . | . . . . . . . Route ------- -11/Scrapyard -10/Materials -10/Subcaves -7/Scraptown (discovered 2 exits: *Fac x2) -5/Factory (discovered 3 exits: *Fac / *Upp x2) -5/Upper Caves -5/Upper Caves (discovered 2 exits: *Fac / *War) History --------- Turn | Location | Event 10 | -11/Scrapyard | Discovered new exit (range 16) 70 | -11/Scrapyard | Entered Materials 71 | -10/Materials | Met a group of wandering Federalists 185 | -10/Materials | Discovered new exit (range 5) 187 | -10/Materials | Entered Subcaves 188 | -10/Subcaves | Continued accompanying wandering Federalists (5) 188 | -10/Subcaves | Approached by a straggling Scientist 288 | -10/Subcaves | Learned location of Zion (-7) 288 | -10/Subcaves | Met a Zionite searching for "candidates" 301 | -10/Subcaves | Build established: Mutant 364 | -10/Subcaves | Shifting Twisted Machinery released Sub. Shrapnel Launcher 424 | -10/Subcaves | Learned Materials interactive machine intel 447 | -10/Subcaves | Visited 4L-MR0's lab 462 | -10/Subcaves | Found Power Bank 532 | -10/Subcaves | Entered Scraptown 591 | -7/Scraptown | Visited UFD Registry 591 | -7/Scraptown | Registered with UFD as "Pyrobrain" 615 | -7/Scraptown | Visited A0-MCA Data Center 627 | -7/Scraptown | Visited Curators Association 692 | -7/Scraptown | Visited Abandonware Association 705 | -7/Scraptown | Visited Research Penetration Think Tank 722 | -7/Scraptown | Visited Junk Repository 744 | -7/Scraptown | Visited Scrap Suit Storage 759 | -7/Scraptown | Visited Chapter 10 811 | -7/Scraptown | Visited DA-N13 Charitable Foundation 821 | -7/Scraptown | Found DCF Scrap (28 items) 844 | -7/Scraptown | Visited Infowarlord's Domain 893 | -7/Scraptown | Visited Cyclists 901 | -7/Scraptown | Entered Cyclist Reading Room 914 | -7/Scraptown | Visited Shadow of the Wyrm 918 | -7/Scraptown | Visited Assassins FH 939 | -7/Scraptown | Visited SPCMW 952 | -7/Scraptown | Visited Comm Corps 978 | -7/Scraptown | Visited Fellowship of the Rings 1199 | -7/Scraptown | Scanned Subdweller tech in exchange for log data 1201 | -7/Scraptown | Learned Factory stockpile data 1202 | -7/Scraptown | Learned Research emergency access door positions 1216 | -7/Scraptown | Discovered new exit (range 11) 1244 | -7/Scraptown | Guru changed UFD alias to "Dualslasher" 1956 | -7/Scraptown | Given an A+ rating by A0-MCA 1960 | -7/Scraptown | Found A0-MCA's Component Scanner 2008 | -7/Scraptown | Learned abandonware demo "KABOOM.EXE" 2188 | -7/Scraptown | Build established: Derelict-Mutant 2515 | -7/Scraptown | Found Exp. Signal Interpreter 3818 | -7/Scraptown | Discovered new exit (range 3) 3946 | -7/Scraptown | Met Optimus 3946 | -7/Scraptown | Accepted into 0bPrime 3978 | -7/Scraptown | Visited LU-1G1's Boring Crew 4342 | -7/Scraptown | Civil war broke out across Scraptown 4354 | -7/Scraptown | Found Prototype Special Weapon 4354 | -7/Scraptown | Identified LU-1G1's Laser Shovel 4366 | -7/Scraptown | Found Ballwheel 4382 | -7/Scraptown | Found Surveybot 24 Chip 4399 | -7/Scraptown | Found Prototype Processor 4532 | -7/Scraptown | Core integrity fell below 50% 4540 | -7/Scraptown | Entered Factory 4540 | -5/Factory | Evolved 10 slots: Propulsion x2, Utility x8 4548 | -5/Factory | Identified Expert System 5036 | -5/Factory | Found Prototype Launcher 5036 | -5/Factory | Identified Mni. Smartbomb Launcher 5040 | -5/Factory | Found Faulty Mni. Smartbomb Launcher 5082 | -5/Factory | Discovered new exit (range 5) 5085 | -5/Factory | Identified exit to Upper Caves 5315 | -5/Factory | Build established: Mutant 5427 | -5/Factory | Discovered exit to Upper Caves (range 16) 5447 | -5/Factory | Discovered new exit (range 16) 5458 | -5/Factory | Identified exit to Factory 5515 | -5/Factory | Repaired Imp. Heavy Armor Plating 5739 | -5/Factory | Entered Upper Caves 5827 | -5/Upper Caves | Learned Factory terminal intel 5904 | -5/Upper Caves | Encountered a Warlord checkpoint 6018 | -5/Upper Caves | Discovered new exit (range 5) 6020 | -5/Upper Caves | Identified exit to Upper Caves 6021 | -5/Upper Caves | Entered another Upper Caves area 6112 | -5/Upper Caves | Discovered exit to Factory (range 14) 6194 | -5/Upper Caves | Learned 4 Factory zone layouts 6215 | -5/Upper Caves | Spotted B-75 Beast 6303 | -5/Upper Caves | Discovered new exit (range 13) 6310 | -5/Upper Caves | Identified exit to Warlord 6326 | -5/Upper Caves | Attracted the attention of an 0b10 checkpoint 6378 | -5/Upper Caves | Lost 3 parts (1n2u) 6794 | -5/Upper Caves | Lost 4 parts (1p2n1u) 7234 | -5/Upper Caves | Learned location of 1 exit from Upper Caves 7886 | -5/Upper Caves | Core integrity fell below 50% 7903 | -5/Upper Caves | Core integrity fell below 20% 7928 | -5/Upper Caves | Destroyed by G-50 Soldier with Heavy Laser Last Messages --------------- 07583_ System corrupted: Matter fused (-8). 07606_ System corrupted: Matter fused (-6). 07623_ EFKPMA GD%Q5WRPOYJFCS 07685_ System corrupted: Energy discharge (-27). 07735_ System corrupted: Heat flow error (+213). 07764_ System corrupted: Heat flow error (+197). 07805_ JCN, 2 IBCV9J6V,9AOY RY# 07825_ System corrupted: Energy discharge (-39). 07859_ C-30 ARC bursts open, deploying its payload. 07859_ L-41 Fighter unfolds itself. 07859_ G-50 Soldier unfolds itself. 07863_ System corrupted: Substantial component data lost. 07871_ Imp. Heavy Machine Gun destroyed. 07873_ Nuclear Pulse Thruster destroyed. 07878_ Critical hit (Burn: +37). 07889_ System corrupted: Component data lost. 07902_ Core Analyzer destroyed. 07904_ Critical hit (Burn: +37). 07909_ Power Maul destroyed. 07926_ Critical hit (Burn: +37). Map ----- +----------------------------------------------------+ | ??????????????????????????????????????????# #???? | | ??????????????????????????????????????????# #???? | | ??????????????????????????????????????????# ##??? | | ???????????????????????????????????????#### ###? | | ???????????????????????????????????????# #? | | ???????????????????????????????????????# #? | | ???????????????????????????????????????#""" """ #? | | ???????????????????????????????????????#""" """ ## | | ???????????????????????????????????????#""" """ ## | | ???????????????????????????????????????# " " ## | | ???????????????????????????????????????# """"" #" | | ???????????????????????????????????????# """"" ## | | ???????????????????????????????????????# """ | | ???????????????????????????????????????# ! | | ???????????????????????????????????????########### | | ?????????????????????????????????????????????###?# | | ???????????????????????????????????????????## #?? | | ??????????????????????????????????????????## #?? | | ??????????????????????????????????????????# #?? | | ??????????????????????????????????????????# #??? | | ?????????????????????###??#####??????###### #???? | | ????????####????????## #?## ##???### ##### | | ???????## ##????#### #?# ##### | | ???????# ##??## ### ## | | ??###### #### #; > | | ### ### %## @ | | % gggl # ### # | | ## ##### ### #?####""" """ ## | | # ###### ####?# #?# #????#""" """ ## | | ##????## ## #" ### #?# #????#""" """ ## | | # #?????######" %% #?# #????# " " # | | ## ###????# ! ####?# ???? """"" | | #????# %*##???? ???? """"" | | ## #???## ###????? ???? ?""" | | # # # #??## % ##??????? ??????? # | | # # #?## #???????? ????? ########## | | # ### #?####?? ## ?????#?????????## | | ## ### #??#??## ???????????????# | | # ## % #""#### #?####### ??????????????# | | # # ### "##### ### ##???????????????# | | ##### ## #???????????????? | | # ### #??????????????## | | ## * #### ## #?# ##????#####??### | | ?########## #??## #???# ###### #### | | ## ## #??# #???# ##### | | # #### ###### | | ?# ## ### #### | | ?# ##### ## ## ###??# | | ?# ###??## ###!!! ##????# | | ?# #####????# ### #????# | +----------------------------------------------------+ Best States ------------- Heat Dissipation 59 Energy Generation 19 Energy Capacity 315 Matter Stores 300 Matter Capacity 300 Sight Range 16 Robot Scan Range 16 Terrain Scan Density 10 Cloak Strength 2 Armor Coverage 1425 Resistance: EM 25 Propulsion Shielding 66 Evasion (%) 61 Core Analysis 9 Kinecelleration 40 Offensive Hacking 12 Item Schematics ----------------- None Robot Schematics ------------------ None Fabricated ------------ Nothing Repaired ---------- Imp. Heavy Armor Plating | 2% | -5/Factory Studied --------- None Alien Tech Used ----------------- None Achievements -------------- None Challenges ------------ None Game ------ Seed AngularColdSpiker Manual? 0 Play Time 01:03:11 Cumulative 511.7 hours Start 2026.09.18 @ 17:21:15 End 2026.09.19 @ 03:49:42 Sessions 3 Manual Loads 0 Difficulty Rogue Special Mode None Game No. 381 Rogue 381 Adventurer 0 Explorer 0 Win Type - Total 11 Types 4/0/5/2/0/0/0/0/0/0 Lore% 67 Gallery% 74 Achievement% 62 Wizard Run 0 Options --------- Layout 2 ASCII 0 Keyboard 1 Movement Vi Keybinds 0 Fullscreen 2 Font 32/Smallcaps Map View 77x44 Zoom Use 0% Tactical HUD 1 Map Filters NONE Filters NONE Steam 1 RUN: 4bba7eee-fb02-47b9-85e5-844ca36454aa